[Event "71st RUS-ch Higher League 2018"]
[Site "Yaroslavl"]
[Date "2018.06.26"]
[Round "1"]
[White "Dreev, Aleksey"]
[Black "Lomasov, Semen"]
[Result "1/2-1/2"]
[ECO "E16"]
[WhiteElo "2657"]
[BlackElo "2549"]
[Annotator "ChessBase"]
[PlyCount "80"]
[EventDate "2018.06.26"]
[EventType "swiss"]
[EventCountry "RUS"]
[SourceTitle "playchess.com"]
[Source "ChessBase"]
[SourceQuality "1"]
[TimeControl "40/5400+30:1800+30"]

1. d4 {[%emt 0:00:00]} Nf6 {[%emt 0:00:05]} 2. Nf3 {[%emt 0:00:00]} e6 {[%emt 0:00:12]} 3. c4 {[%emt 0:00:00]} Bb4+ {[%emt 0:00:22]} 4. Bd2 {[%emt 0:00:17]} Qe7 {[%emt 0:00:20]} 5. g3 {[%emt 0:00:58]} Bxd2+ {[%emt 0:00:36]} 6. Qxd2 {[%emt 0:00:43]} Nc6 {[%emt 0:00:11]} 7. Nc3 {[%emt 0:13:18]} d5 {[%emt 0:00:21]} 8. Ne5 {[%emt 0:07:56]} dxc4 {[%emt 0:12:11]} 9. Nxc6 {[%emt 0:17:38]} bxc6 {[%emt 0:00:45]} 10. Bg2 {[%emt 0:00:44]} O-O {[%emt 0:03:32]} 11. Bxc6 {[%emt 0:01:10]} Rb8 {[%emt 0:00:05]} 12. O-O {[%emt 0:00:05]} Rd8 {[%emt 0:00:50]} 13. Rfd1 {[%emt 0:03:08]} Qd6 {[%emt 0:30:51]} 14. Bg2 {[%emt 0:05:09]} c5 {[%emt 0:05:50]} 15. d5 {[%emt 0:02:17]} exd5 {[%emt 0:01:05]} 16. Nxd5 {[%emt 0:00:27]} Nxd5 {[%emt 0:01:15]} 17. Qxd5 {[%emt 0:03:02]} Qxd5 {[%emt 0:00:35]} 18. Bxd5 {[%emt 0:00:17]} Be6 {[%emt 0:06:18]} 19. Bxe6 {[%emt 0:03:11]} fxe6 {[%emt 0:00:12]} 20. Rxd8+ {[%emt 0:04:09]} Rxd8 {[%emt 0:00:01]} 21. Rc1 {[%emt 0:03:25]} Rd2 {[%emt 0:00:19]} 22. Rxc4 {[%emt 0:01:09]} Rxb2 {[%emt 0:00:50]} 23. a4 {[%emt 0:06:38]} Rb4 {[%emt 0:01:31]} 24. Rxc5 {[%emt 0:00:06]} Rxa4 {[%emt 0:00:03]} 25. Rc7 {[%emt 0:00:13]} Ra2 {[%emt 0:03:36]} 26. Kf1 {[%emt 0:02:36]} Kf8 {[%emt 0:14:18]} 27. f4 {[%emt 0:00:36]} h5 {[%emt 0:06:16]} 28. Kf2 {[%emt 0:01:52]} Ra3 {[%emt 0:00:05]} 29. Rb7 {[%emt 0:01:52]} a5 {[%emt 0:01:47]} 30. Ra7 {[%emt 0:00:13]} h4 {[%emt 0:06:04]} 31. gxh4 {[%emt 0:07:29]} Rh3 {[%emt 0:00:12]} 32. Kg2 {[%emt 0:00:31]} Re3 {[%emt 0:02:43]} 33. Kf2 {[%emt 0:00:40]} Rh3 {[%emt 0:00:07]} 34. e4 {[%emt 0:02:55]} Rxh2+ {[%emt 0:01:24]} 35. Kg3 {[%emt 0:00:19]} Ra2 {[%emt 0:01:00]} 36. Kf3 {[%emt 0:01:31]} Rh2 {[%emt 0:01:15]} 37. Rxa5 {[%emt 0:02:52]} Rxh4 {[%emt 0:00:06]} 38. Ke3 {[%emt 0:00:04]} Kf7 {[%emt 0:01:10]} 39. Ra7+ {[%emt 0:00:39]} Kf8 {[%emt 0:00:23]} 40. Rb7 {[%emt 0:00:00]} Rg4 {[%emt 0:00:18]} 1/2-1/2

[Event "71st RUS-ch Higher League 2018"]
[Site "Yaroslavl"]
[Date "2018.06.26"]
[Round "1"]
[White "Paravyan, David"]
[Black "Sychev, Klementy"]
[Result "1-0"]
[ECO "A10"]
[WhiteElo "2634"]
[BlackElo "2527"]
[Annotator "ChessBase"]
[PlyCount "67"]
[EventDate "2018.06.26"]
[EventType "swiss"]
[EventCountry "RUS"]
[SourceTitle "playchess.com"]
[Source "ChessBase"]
[SourceQuality "1"]
[TimeControl "40/5400+30:1800+30"]

1. c4 {[%emt 0:00:00]} g6 {[%emt 0:01:55]} 2. e4 {[%emt 0:00:00]} e5 {[%emt 0:02:43]} 3. d4 {[%emt 0:00:03]} Nf6 {[%emt 0:06:54]} 4. f3 {[%emt 0:00:16]} exd4 {[%emt 0:02:23]} 5. Qxd4 {[%emt 0:00:05]} Nc6 {[%emt 0:02:58]} 6. Qf2 {[%emt 0:00:32]} Bg7 {[%emt 0:07:25]} 7. Nc3 {[%emt 0:01:26]} d6 {[%emt 0:02:06]} 8. Be3 {[%emt 0:00:23]} Be6 {[%emt 0:01:32]} 9. Qd2 {[%emt 0:34:14]} O-O {[%emt 0:18:21]} 10. Rd1 {[%emt 0:00:59]} Nd7 {[%emt 0:09:19]} 11. h4 {[%emt 0:35:02]} h5 {[%emt 0:03:47]} 12. Bg5 {[%emt 0:10:27]} f6 {[%emt 0:07:02]} 13. Bh6 {[%emt 0:00:13]} f5 {[%emt 0:00:04]} 14. Bxg7 {[%emt 0:02:56]} Kxg7 {[%emt 0:01:24]} 15. Nge2 {[%emt 0:01:00]} Bxc4 {[%emt 0:15:06]} 16. Nf4 {[%emt 0:00:03]} Bg8 {[%emt 0:00:53]} 17. exf5 {[%emt 0:04:57]} Rxf5 {[%emt 0:00:10]} 18. Bd3 {[%emt 0:00:05]} Re5+ {[%emt 0:00:11]} 19. Kf2 {[%emt 0:01:05]} Bf7 {[%emt 0:09:13]} 20. Rh3 {[%emt 0:00:12]} Nc5 {[%emt 0:00:38]} 21. Bxg6 {[%emt 0:04:14]} Bxg6 {[%emt 0:01:37]} 22. Nxg6 {[%emt 0:00:03]} Kxg6 {[%emt 0:01:10]} 23. Rg3+ {[%emt 0:00:03]} Kh7 {[%emt 0:03:27]} 24. Qc2+ {[%emt 0:00:03]} Kh8 {[%emt 0:00:03]} 25. Qg6 {[%emt 0:00:03]} Re7 {[%emt 0:01:56]} 26. Qf6+ {[%emt 0:03:02]} Kh7 {[%emt 0:00:01]} 27. Qg6+ {[%emt 0:00:04]} Kh8 {[%emt 0:00:02]} 28. Nd5 {[%emt 0:01:36]} Nd7 {[%emt 0:01:17]} 29. Nf6 {[%emt 0:00:45]} Nxf6 {[%emt 0:00:43]} 30. Qxf6+ {[%emt 0:00:02]} Kh7 {[%emt 0:00:05]} 31. Qg6+ {[%emt 0:00:04]} Kh8 {[%emt 0:00:06]} 32. Rd5 {[%emt 0:00:11]} Ne5 {[%emt 0:01:18]} 33. Rxe5 {[%emt 0:00:10]} dxe5 {[%emt 0:00:26]} 34. Qxh5+ {[%emt 0:00:05]} 1-0

[Event "71st RUS-ch Higher League 2018"]
[Site "Yaroslavl"]
[Date "2018.06.26"]
[Round "1"]
[White "Rakhmanov, Aleksandr"]
[Black "Usmanov, Vasily"]
[Result "1-0"]
[ECO "A05"]
[WhiteElo "2627"]
[BlackElo "2477"]
[Annotator "ChessBase"]
[PlyCount "79"]
[EventDate "2018.06.26"]
[EventType "swiss"]
[EventCountry "RUS"]
[SourceTitle "playchess.com"]
[Source "ChessBase"]
[SourceQuality "1"]
[TimeControl "40/5400+30:1800+30"]

1. Nf3 {[%emt 0:00:00]} Nf6 {[%emt 0:00:47]} 2. g3 {[%emt 0:00:37]} d5 {[%emt 0:02:49]} 3. Bg2 {[%emt 0:01:26]} c6 {[%emt 0:00:05]} 4. d4 {[%emt 0:00:59]} Bf5 {[%emt 0:00:55]} 5. c4 {[%emt 0:00:59]} e6 {[%emt 0:01:24]} 6. Nc3 {[%emt 0:02:05]} h6 {[%emt 0:11:20]} 7. Qb3 {[%emt 0:01:24]} Qb6 {[%emt 0:00:09]} 8. c5 {[%emt 0:00:13]} Qc7 {[%emt 0:00:24]} 9. Bf4 {[%emt 0:00:09]} Qc8 {[%emt 0:00:04]} 10. Nd2 {[%emt 0:00:11]} Be7 {[%emt 0:04:41]} 11. e4 {[%emt 0:00:19]} Bh7 {[%emt 0:02:50]} 12. O-O {[%emt 0:02:41]} O-O {[%emt 0:00:59]} 13. Rfe1 {[%emt 0:07:00]} Rd8 {[%emt 0:12:31]} 14. Rad1 {[%emt 0:07:56]} Nbd7 {[%emt 0:06:34]} 15. exd5 {[%emt 0:07:21]} Nxd5 {[%emt 0:03:55]} 16. Nxd5 {[%emt 0:11:55]} cxd5 {[%emt 0:00:06]} 17. Rc1 {[%emt 0:10:20]} Bf6 {[%emt 0:09:52]} 18. Qc3 {[%emt 0:09:51]} a5 {[%emt 0:07:14]} 19. Nf1 {[%emt 0:08:29]} Qc6 {[%emt 0:06:34]} 20. Ne3 {[%emt 0:01:42]} Qa4 {[%emt 0:11:08]} 21. Red1 {[%emt 0:04:50]} Rdc8 {[%emt 0:02:19]} 22. Ng4 {[%emt 0:07:37]} Be7 {[%emt 0:00:04]} 23. h4 h5 {[%emt 0:02:46]} 24. Ne5 {[%emt 0:06:56]} Nxe5 {[%emt 0:00:15]} 25. Bxe5 {[%emt 0:00:06]} b6 26. b3 {[%emt 0:04:07]} Qe8 {[%emt 0:06:40]} 27. Qe3 {[%emt 0:01:38]} bxc5 {[%emt 0:05:12]} 28. dxc5 {[%emt 0:00:04]} Rc6 {[%emt 0:00:06]} 29. a3 {[%emt 0:02:10]} Qc8 {[%emt 0:01:16]} 30. b4 {[%emt 0:00:14]} axb4 {[%emt 0:00:02]} 31. axb4 {[%emt 0:00:03]} Qb7 {[%emt 0:00:07]} 32. Bc3 {[%emt 0:00:46]} Ra3 {[%emt 0:02:44]} 33. Qd2 {[%emt 0:00:01]} Bf5 {[%emt 0:00:36]} 34. Bxg7 {[%emt 0:01:24]} Rd3 {[%emt 0:00:31]} 35. Qh6 {[%emt 0:00:13]} Rxd1+ {[%emt 0:00:02]} 36. Rxd1 {[%emt 0:00:03]} Bh7 {[%emt 0:00:23]} 37. Be5 {[%emt 0:02:00]} f6 {[%emt 0:00:43]} 38. Bxf6 {[%emt 0:00:13]} Bf8 {[%emt 0:00:52]} 39. Qg5+ {[%emt 0:00:27]} Kf7 {[%emt 0:00:03]} 40. Bc3 {[%emt 0:00:00]} 1-0

[Event "71st RUS-ch Higher League 2018"]
[Site "Yaroslavl"]
[Date "2018.06.26"]
[Round "1"]
[White "Alekseenko, Kirill"]
[Black "Iskusnyh, Sergei"]
[Result "1/2-1/2"]
[ECO "C11"]
[WhiteElo "2621"]
[BlackElo "2473"]
[Annotator "ChessBase"]
[PlyCount "176"]
[EventDate "2018.06.26"]
[EventType "swiss"]
[EventCountry "RUS"]
[SourceTitle "playchess.com"]
[Source "ChessBase"]
[SourceQuality "1"]
[TimeControl "40/5400+30:1800+30"]

1. e4 {[%emt 0:00:00]} e6 {[%emt 0:00:09]} 2. d4 {[%emt 0:00:01]} d5 {[%emt 0:00:06]} 3. Nc3 {[%emt 0:00:18]} Nf6 {[%emt 0:00:13]} 4. e5 {[%emt 0:00:13]} Nfd7 {[%emt 0:00:07]} 5. f4 {[%emt 0:00:23]} c5 {[%emt 0:00:06]} 6. Nf3 {[%emt 0:00:23]} Nc6 {[%emt 0:01:12]} 7. Be3 {[%emt 0:00:20]} Rb8 {[%emt 0:01:42]} 8. Qd2 {[%emt 0:02:41]} Qa5 {[%emt 0:00:15]} 9. Bb5 {[%emt 0:13:17]} a6 {[%emt 0:06:52]} 10. Be2 {[%emt 0:00:23]} b5 {[%emt 0:10:54]} 11. O-O {[%emt 0:01:07]} b4 {[%emt 0:07:09]} 12. Nd1 {[%emt 0:02:31]} cxd4 {[%emt 0:02:24]} 13. Nxd4 {[%emt 0:00:31]} Nxd4 {[%emt 0:00:15]} 14. Bxd4 {[%emt 0:01:12]} Bc5 {[%emt 0:00:26]} 15. Ne3 {[%emt 0:04:54]} O-O {[%emt 0:07:29]} 16. Rfd1 {[%emt 0:15:42]} Qb6 {[%emt 0:06:35]} 17. c4 {[%emt 0:01:15]} bxc3 {[%emt 0:03:08]} 18. bxc3 {[%emt 0:00:07]} a5 {[%emt 0:16:50]} 19. Qd3 {[%emt 0:08:01]} Qc7 {[%emt 0:08:30]} 20. Rab1 {[%emt 0:09:20]} Ra8 {[%emt 0:10:52]} 21. Bxc5 {[%emt 0:05:47]} Qxc5 {[%emt 0:06:22]} 22. Qd4 {[%emt 0:00:45]} Ba6 {[%emt 0:02:11]} 23. Bxa6 {[%emt 0:04:13]} Rxa6 {[%emt 0:00:04]} 24. c4 {[%emt 0:00:20]} dxc4 {[%emt 0:01:42]} 25. Nxc4 {[%emt 0:00:25]} Rc6 {[%emt 0:02:31]} 26. Qxc5 {[%emt 0:01:43]} Rxc5 {[%emt 0:01:13]} 27. Nd6 {[%emt 0:02:54]} Rc6 {[%emt 0:02:50]} 28. Nb7 {[%emt 0:01:36]} Rc7 {[%emt 0:01:02]} 29. Nxa5 {[%emt 0:01:59]} Ra8 {[%emt 0:00:42]} 30. Rb7 {[%emt 0:01:14]} Rxb7 {[%emt 0:00:15]} 31. Nxb7 {[%emt 0:00:05]} Nf8 {[%emt 0:00:25]} 32. Rd2 {[%emt 0:01:28]} g5 {[%emt 0:00:33]} 33. fxg5 {[%emt 0:02:15]} Ra3 {[%emt 0:01:14]} 34. Nc5 {[%emt 0:08:58]} Ng6 {[%emt 0:00:26]} 35. Nd7 {[%emt 0:00:13]} Kg7 {[%emt 0:00:18]} 36. g3 {[%emt 0:00:56]} Ra5 {[%emt 0:00:36]} 37. Re2 {[%emt 0:00:11]} Ne7 {[%emt 0:00:47]} 38. Kg2 {[%emt 0:03:05]} Ra3 {[%emt 0:00:28]} 39. Rb2 {[%emt 0:01:52]} Nc6 {[%emt 0:00:27]} 40. h4 {[%emt 0:00:00]} h6 {[%emt 0:00:33]} 41. gxh6+ {[%emt 0:04:23]} Kxh6 {[%emt 0:00:08]} 42. Kh3 {[%emt 0:02:41]} Rd3 {[%emt 0:12:18]} 43. Rb7 {[%emt 0:04:15]} Ra3 {[%emt 0:01:06]} 44. Rb2 {[%emt 0:13:56]} Rd3 {[%emt 0:00:11]} 45. Rb7 {[%emt 0:00:52]} Ra3 {[%emt 0:00:16]} 46. Rb6 {[%emt 0:00:04]} Ne7 {[%emt 0:07:06]} 47. Nf6 {[%emt 0:01:02]} Ng6 {[%emt 0:05:48]} 48. Ng4+ {[%emt 0:02:06]} Kg7 {[%emt 0:02:29]} 49. h5 {[%emt 0:01:48]} Ne7 {[%emt 0:01:51]} 50. Nf6 {[%emt 0:00:57]} Rxa2 {[%emt 0:01:38]} 51. Rb7 {[%emt 0:03:55]} Nc6 {[%emt 0:00:19]} 52. Ne8+ {[%emt 0:01:00]} Kh6 {[%emt 0:01:24]} 53. Rxf7 {[%emt 0:03:14]} Nxe5 {[%emt 0:00:04]} 54. Rb7 {[%emt 0:02:34]} Kxh5 {[%emt 0:01:44]} 55. Rb5 {[%emt 0:00:22]} Re2 {[%emt 0:00:09]} 56. Ng7+ {[%emt 0:00:16]} Kg6 {[%emt 0:01:10]} 57. Nxe6 {[%emt 0:00:11]} Kf6 {[%emt 0:00:17]} 58. Nd4 {[%emt 0:00:14]} Ra2 {[%emt 0:00:38]} 59. Rb6+ {[%emt 0:00:20]} Kf7 {[%emt 0:00:34]} 60. Nf5 {[%emt 0:00:34]} Ra4 {[%emt 0:00:25]} 61. Nh6+ {[%emt 0:00:32]} Kg7 {[%emt 0:00:23]} 62. g4 {[%emt 0:00:09]} Nxg4 {[%emt 0:00:55]} 63. Nxg4 {[%emt 0:00:06]} Kf7 {[%emt 0:00:11]} 64. Kg3 {[%emt 0:00:17]} Ke7 {[%emt 0:00:08]} 65. Kf3 {[%emt 0:00:20]} Kd7 {[%emt 0:00:09]} 66. Ne5+ {[%emt 0:00:52]} Ke7 {[%emt 0:00:11]} 67. Rh6 {[%emt 0:00:36]} Ra1 {[%emt 0:00:12]} 68. Nc6+ {[%emt 0:00:25]} Kd7 {[%emt 0:00:08]} 69. Ke4 {[%emt 0:00:10]} Re1+ {[%emt 0:00:34]} 70. Kd5 {[%emt 0:00:05]} Rd1+ {[%emt 0:00:06]} 71. Nd4 {[%emt 0:00:04]} Ke7 {[%emt 0:00:04]} 72. Rh3 {[%emt 0:00:31]} Kf7 {[%emt 0:00:28]} 73. Rf3+ {[%emt 0:00:38]} Kg6 {[%emt 0:00:38]} 74. Rf2 {[%emt 0:00:27]} Ra1 {[%emt 0:00:25]} 75. Nc6 {[%emt 0:00:34]} Kg5 {[%emt 0:00:17]} 76. Rf8 {[%emt 0:00:45]} Ra2 {[%emt 0:00:55]} 77. Rf1 {[%emt 0:00:39]} Kg4 {[%emt 0:00:43]} 78. Kd4 {[%emt 0:01:54]} Kg5 {[%emt 0:00:13]} 79. Ne7 {[%emt 0:00:10]} Kg4 {[%emt 0:00:19]} 80. Ke3 {[%emt 0:01:01]} Ra3+ {[%emt 0:00:27]} 81. Ke4 {[%emt 0:00:05]} Ra4+ {[%emt 0:00:07]} 82. Ke5 {[%emt 0:00:05]} Ra5+ {[%emt 0:00:10]} 83. Nd5 {[%emt 0:00:05]} Kg3 {[%emt 0:00:14]} 84. Rf8 {[%emt 0:00:14]} Kg4 {[%emt 0:00:08]} 85. Rf4+ {[%emt 0:00:18]} Kg3 {[%emt 0:00:11]} 86. Rd4 {[%emt 0:00:35]} Kf3 {[%emt 0:00:52]} 87. Kf5 {[%emt 0:00:19]} Rc5 {[%emt 0:01:10]} 88. Rf4+ {[%emt 0:01:15]} Kg3 {[%emt 0:00:31]} 1/2-1/2

[Event "71st RUS-ch Higher League 2018"]
[Site "Yaroslavl"]
[Date "2018.06.26"]
[Round "1"]
[White "Predke, Alexandr"]
[Black "Fakhrutdinov, Timur"]
[Result "0-1"]
[ECO "C65"]
[WhiteElo "2613"]
[BlackElo "2460"]
[Annotator "ChessBase"]
[PlyCount "86"]
[EventDate "2018.06.26"]
[EventType "swiss"]
[EventCountry "RUS"]
[SourceTitle "playchess.com"]
[Source "ChessBase"]
[SourceQuality "1"]
[TimeControl "40/5400+30:1800+30"]

1. e4 {[%emt 0:00:00]} e5 {[%emt 0:00:09]} 2. Nf3 {[%emt 0:00:03]} Nc6 {[%emt 0:00:10]} 3. Bb5 {[%emt 0:00:11]} Nf6 {[%emt 0:00:12]} 4. d3 {[%emt 0:00:19]} Bc5 {[%emt 0:00:17]} 5. Bxc6 {[%emt 0:00:10]} dxc6 {[%emt 0:00:07]} 6. Nbd2 {[%emt 0:00:25]} O-O {[%emt 0:00:45]} 7. h3 {[%emt 0:00:38]} Nd7 {[%emt 0:06:06]} 8. Nf1 {[%emt 0:00:25]} Re8 {[%emt 0:03:20]} 9. g4 {[%emt 0:00:22]} Nf8 {[%emt 0:15:42]} 10. Ng3 {[%emt 0:00:17]} a5 {[%emt 0:05:54]} 11. Be3 {[%emt 0:01:34]} Bd6 {[%emt 0:10:18]} 12. Nf5 {[%emt 0:01:39]} Ne6 {[%emt 0:01:37]} 13. Qd2 {[%emt 0:03:48]} c5 {[%emt 0:02:57]} 14. Rg1 {[%emt 0:07:50]} b5 {[%emt 0:15:48]} 15. h4 {[%emt 0:05:59]} Nd4 {[%emt 0:08:00]} 16. Qd1 {[%emt 0:01:39]} Bf8 {[%emt 0:02:59]} 17. h5 {[%emt 0:02:19]} a4 {[%emt 0:09:34]} 18. N3xd4 {[%emt 0:15:42]} exd4 {[%emt 0:04:13]} 19. Bf4 {[%emt 0:02:04]} c4 {[%emt 0:01:49]} 20. Qf3 {[%emt 0:02:49]} Be6 {[%emt 0:04:27]} 21. h6 {[%emt 0:06:44]} g6 {[%emt 0:03:26]} 22. Ng7 {[%emt 0:00:38]} Bxg7 {[%emt 0:00:55]} 23. hxg7 {[%emt 0:00:04]} Qf6 {[%emt 0:01:17]} 24. Qg3 {[%emt 0:02:57]} g5 {[%emt 0:01:41]} 25. Be5 {[%emt 0:01:39]} Qg6 {[%emt 0:00:17]} 26. f4 {[%emt 0:05:29]} gxf4 {[%emt 0:00:24]} 27. Qxf4 {[%emt 0:00:04]} cxd3 {[%emt 0:00:33]} 28. cxd3 {[%emt 0:00:49]} c5 {[%emt 0:00:22]} 29. Kf2 {[%emt 0:11:47]} f6 {[%emt 0:00:39]} 30. Bxf6 {[%emt 0:00:59]} c4 {[%emt 0:00:23]} 31. g5 {[%emt 0:12:24]} cxd3 {[%emt 0:00:32]} 32. Rh1 {[%emt 0:00:26]} Bc4 {[%emt 0:01:05]} 33. e5 {[%emt 0:09:20]} Bd5 {[%emt 0:00:16]} 34. Rh6 {[%emt 0:01:00]} Qe4 {[%emt 0:00:18]} 35. Qxe4 {[%emt 0:00:07]} Bxe4 {[%emt 0:00:08]} 36. Rh4 {[%emt 0:00:04]} Bg6 {[%emt 0:01:07]} 37. Rxd4 {[%emt 0:00:33]} Rac8 {[%emt 0:00:21]} 38. Rb4 {[%emt 0:02:26]} Rc2+ {[%emt 0:00:35]} 39. Ke3 {[%emt 0:00:30]} Re2+ {[%emt 0:00:22]} 40. Kf4 {[%emt 0:00:00]} d2 {[%emt 0:00:40]} 41. Rd1 {[%emt 0:06:24]} Bc2 {[%emt 0:01:41]} 42. Rxd2 {[%emt 0:00:05]} Rxd2 {[%emt 0:00:08]} 43. Rxb5 {[%emt 0:00:02]} Bb1 {[%emt 0:06:32]} 0-1

[Event "71st RUS-ch Higher League 2018"]
[Site "Yaroslavl"]
[Date "2018.06.26"]
[Round "1"]
[White "Popov, Ivan"]
[Black "Gaifullin, Artur"]
[Result "1-0"]
[ECO "B15"]
[WhiteElo "2608"]
[BlackElo "2448"]
[Annotator "ChessBase"]
[PlyCount "65"]
[EventDate "2018.06.26"]
[EventType "swiss"]
[EventCountry "RUS"]
[SourceTitle "playchess.com"]
[Source "ChessBase"]
[SourceQuality "1"]
[TimeControl "40/5400+30:1800+30"]

1. e4 {[%emt 0:00:00]} c6 {[%emt 0:00:03]} 2. d4 {[%emt 0:00:01]} d5 {[%emt 0:00:03]} 3. Nd2 {[%emt 0:00:31]} dxe4 {[%emt 0:00:08]} 4. Nxe4 {[%emt 0:00:05]} Nf6 {[%emt 0:00:13]} 5. Nxf6+ {[%emt 0:00:25]} exf6 {[%emt 0:00:01]} 6. c3 {[%emt 0:00:48]} Bd6 {[%emt 0:00:05]} 7. Bd3 {[%emt 0:00:22]} O-O {[%emt 0:00:05]} 8. Qc2 {[%emt 0:02:48]} Re8+ {[%emt 0:00:05]} 9. Ne2 {[%emt 0:00:20]} h5 {[%emt 0:00:07]} 10. O-O {[%emt 0:04:18]} h4 {[%emt 0:00:14]} 11. h3 {[%emt 0:04:35]} Nd7 {[%emt 0:00:10]} 12. Be3 {[%emt 0:01:01]} Nf8 {[%emt 0:00:09]} 13. Qd2 {[%emt 0:11:49]} Ng6 {[%emt 0:09:59]} 14. Rfe1 {[%emt 0:08:54]} Bc7 {[%emt 0:01:23]} 15. Nf4 {[%emt 0:06:53]} Nf8 {[%emt 0:01:22]} 16. c4 {[%emt 0:13:16]} Ne6 {[%emt 0:35:56]} 17. d5 {[%emt 0:04:32]} Ng5 {[%emt 0:07:52]} 18. Rad1 {[%emt 0:10:41]} Bd7 {[%emt 0:19:07]} 19. Bb1 {[%emt 0:06:01]} Ne4 {[%emt 0:08:34]} 20. Bxe4 {[%emt 0:07:35]} Rxe4 {[%emt 0:00:31]} 21. d6 {[%emt 0:00:21]} Bb6 {[%emt 0:00:56]} 22. Bxb6 {[%emt 0:01:55]} Rxe1+ {[%emt 0:00:24]} 23. Rxe1 {[%emt 0:00:38]} axb6 {[%emt 0:00:08]} 24. b4 {[%emt 0:00:27]} Bf5 {[%emt 0:10:21]} 25. Re7 {[%emt 0:00:54]} Bb1 {[%emt 0:01:32]} 26. c5 {[%emt 0:04:21]} bxc5 {[%emt 0:01:25]} 27. bxc5 {[%emt 0:00:03]} Bxa2 {[%emt 0:00:30]} 28. Rxb7 {[%emt 0:00:17]} Bc4 {[%emt 0:01:34]} 29. Qd4 {[%emt 0:02:46]} Ba2 {[%emt 0:00:53]} 30. Rc7 {[%emt 0:01:34]} Bb1 {[%emt 0:01:06]} 31. Rxc6 {[%emt 0:00:29]} Bf5 {[%emt 0:00:21]} 32. Nd5 {[%emt 0:00:36]} Bh7 {[%emt 0:00:09]} 33. d7 {[%emt 0:00:56]} 1-0

[Event "71st RUS-ch Higher League 2018"]
[Site "Yaroslavl"]
[Date "2018.06.26"]
[Round "1"]
[White "Ovetchkin, Roman"]
[Black "Gordievsky, Dmitry"]
[Result "1/2-1/2"]
[ECO "B42"]
[WhiteElo "2546"]
[BlackElo "2641"]
[Annotator "ChessBase"]
[PlyCount "126"]
[EventDate "2018.06.26"]
[EventType "swiss"]
[EventCountry "RUS"]
[SourceTitle "playchess.com"]
[Source "ChessBase"]
[SourceQuality "1"]
[TimeControl "40/5400+30:1800+30"]

1. e4 {[%emt 0:00:00]} c5 {[%emt 0:01:32]} 2. Nf3 {[%emt 0:00:00]} e6 {[%emt 0:00:55]} 3. d4 {[%emt 0:00:00]} cxd4 {[%emt 0:00:07]} 4. Nxd4 {[%emt 0:00:10]} a6 {[%emt 0:00:30]} 5. Bd3 {[%emt 0:05:47]} Ne7 {[%emt 0:03:47]} 6. O-O {[%emt 0:02:40]} Nec6 {[%emt 0:01:14]} 7. Nb3 {[%emt 0:00:52]} Be7 {[%emt 0:01:06]} 8. Nc3 {[%emt 0:00:43]} d6 {[%emt 0:04:12]} 9. Be3 {[%emt 0:04:01]} Nd7 {[%emt 0:01:44]} 10. f4 {[%emt 0:03:49]} b5 {[%emt 0:04:51]} 11. Kh1 {[%emt 0:12:03]} Bb7 {[%emt 0:03:25]} 12. a3 {[%emt 0:13:03]} O-O {[%emt 0:05:31]} 13. Qh5 {[%emt 0:04:02]} Re8 {[%emt 0:19:06]} 14. Rad1 {[%emt 0:02:06]} b4 {[%emt 0:05:20]} 15. Na4 {[%emt 0:05:22]} bxa3 {[%emt 0:02:16]} 16. bxa3 {[%emt 0:00:32]} Qc7 {[%emt 0:01:36]} 17. Rf3 {[%emt 0:05:44]} g6 {[%emt 0:01:55]} 18. Qh6 {[%emt 0:01:27]} Bf8 {[%emt 0:03:11]} 19. Qh4 {[%emt 0:00:53]} Bg7 {[%emt 0:02:15]} 20. Qf2 {[%emt 0:02:17]} Rab8 {[%emt 0:06:08]} 21. Nb6 {[%emt 0:09:31]} Nf6 {[%emt 0:02:09]} 22. Qh4 {[%emt 0:00:31]} Ne7 {[%emt 0:02:03]} 23. Nd2 {[%emt 0:02:30]} h5 {[%emt 0:04:02]} 24. Rff1 {[%emt 0:04:02]} d5 {[%emt 0:04:11]} 25. e5 {[%emt 0:01:59]} Ng4 {[%emt 0:08:07]} 26. Bg1 {[%emt 0:02:51]} Bc6 {[%emt 0:00:03]} 27. Rb1 {[%emt 0:05:11]} Bb5 {[%emt 0:00:13]} 28. c4 {[%emt 0:06:23]} dxc4 {[%emt 0:00:07]} 29. Nbxc4 {[%emt 0:00:10]} Red8 {[%emt 0:00:58]} 30. Qg3 {[%emt 0:00:42]} Nd5 {[%emt 0:08:06]} 31. Rbc1 {[%emt 0:00:38]} Rbc8 {[%emt 0:02:00]} 32. Ne4 {[%emt 0:01:40]} Nde3 {[%emt 0:03:15]} 33. Nxe3 {[%emt 0:02:11]} Qxc1 {[%emt 0:00:04]} 34. Rxc1 {[%emt 0:00:33]} Rxc1 {[%emt 0:00:15]} 35. Bxb5 {[%emt 0:00:13]} axb5 {[%emt 0:00:26]} 36. Nxg4 {[%emt 0:01:01]} hxg4 {[%emt 0:00:13]} 37. Nc3 {[%emt 0:02:21]} Bf8 {[%emt 0:00:53]} 38. Qe3 {[%emt 0:00:02]} Bxa3 {[%emt 0:00:37]} 39. f5 {[%emt 0:00:08]} exf5 {[%emt 0:00:43]} 40. e6 {[%emt 0:00:00]} Re8 {[%emt 0:00:51]} 41. exf7+ {[%emt 0:00:36]} Kxf7 {[%emt 0:00:21]} 42. Qa7+ {[%emt 0:00:34]} Be7 {[%emt 0:00:48]} 43. Nxb5 {[%emt 0:00:31]} Rd8 {[%emt 0:09:45]} 44. Nd4 {[%emt 0:00:49]} Re1 {[%emt 0:05:53]} 45. Qa2+ {[%emt 0:01:18]} Kg7 {[%emt 0:00:07]} 46. Qf2 {[%emt 0:07:53]} Re4 {[%emt 0:02:29]} 47. Nc2 {[%emt 0:04:16]} Rd1 {[%emt 0:02:25]} 48. g3 {[%emt 0:03:24]} Bg5 {[%emt 0:00:51]} 49. Qa7+ {[%emt 0:00:36]} Re7 {[%emt 0:01:33]} 50. Qa4 {[%emt 0:02:14]} Re4 {[%emt 0:00:46]} 51. Qb3 {[%emt 0:00:19]} Kh6 {[%emt 0:03:44]} 52. Qc3 {[%emt 0:03:10]} Kh5 {[%emt 0:00:04]} 53. h3 {[%emt 0:03:50]} Re2 {[%emt 0:03:36]} 54. hxg4+ {[%emt 0:00:18]} Kxg4 {[%emt 0:04:05]} 55. Qc4+ {[%emt 0:01:07]} Re4 {[%emt 0:00:01]} 56. Qb3 {[%emt 0:00:07]} Rd2 {[%emt 0:00:30]} 57. Ne3+ {[%emt 0:03:34]} Bxe3 {[%emt 0:00:03]} 58. Bxe3 {[%emt 0:00:04]} Re2 {[%emt 0:00:02]} 59. Bb6 {[%emt 0:00:47]} Kh3 {[%emt 0:00:09]} 60. Bg1 {[%emt 0:00:37]} Kg4 {[%emt 0:00:34]} 61. Qc3 {[%emt 0:03:43]} g5 {[%emt 0:00:20]} 62. Bc5 {[%emt 0:01:14]} Kh3 {[%emt 0:00:30]} 63. Bg1 {[%emt 0:00:10]} Kg4 {[%emt 0:01:45]} 1/2-1/2